{"text_format":"3","workbook":"xlsx","n_sheets":3,"sheets":["РЭ ВсОШ","РЭ ВсОШ школы","Проверки"],"not_rendered":{"defined_names":8},"read":"whole","date_system":"1900"}

{"sheet":"РЭ ВсОШ","index":0,"n_rows":51,"n_cols":27,"rows_kept":51}
["№","Район","победители и призеры","победители и призеры","победители и призеры","победители и призеры","победители и призеры","победители и призеры","победители и призеры","победители и призеры","победители и призеры","победители и призеры","победители и призеры","победители и призеры","победители и призеры","победители и призеры","победители и призеры","победители и призеры","победители и призеры","победители и призеры","победители и призеры","победители и призеры","победители и призеры","победители и призеры","победители и призеры","победители и призеры","Сумма"]
[null,null,"астрономия ","история","русский язык","физика ","франц яз","химия","экономика","биология","информатика","литература","математика","обж","общество","технология","экология","английский ","география","мхк","испанский","итальянский","китайский","немецкий","право","физра"]
[1,"Авиастроительный-Ново-Савиновский",3,7,4,6,null,2,3,6,7,5,5,10,7,2,6,12,5,3,null,null,2,6,9,8,{"$f":"SUM(C3:Z3)","v":118}]
[2,"Агрызский",{"$nulls":9},1,{"$nulls":14},{"$f":"SUM(C4:Z4)","v":1}]
[3,"Азнакаевский",null,null,1,{"$nulls":8},1,{"$nulls":11},2,4]
[4,"Аксубаевский",{"$nulls":24},0]
[5,"Актанышский",null,1,1,{"$nulls":4},2,null,5,null,1,1,3,null,1,null,3,{"$nulls":4},1,4,23]
[6,"Алексеевский",{"$nulls":7},1,null,1,{"$nulls":5},1,{"$nulls":8},3]
[7,"Алькеевский",{"$nulls":9},1,{"$nulls":12},1,null,2]
[8,"Альметьевский",null,1,{"$nulls":3},2,null,1,2,2,null,1,2,2,1,13,2,{"$nulls":4},1,2,2,34]
[9,"Апастовский",{"$nulls":16},1,{"$nulls":7},1]
[10,"Арский",{"$nulls":7},1,null,2,null,2,4,1,1,null,null,5,{"$nulls":4},3,3,22]
[11,"Атнинский",{"$nulls":24},0]
[12,"Бавлинского",null,1,{"$nulls":21},1,2]
[13,"Балтасинский",{"$nulls":9},1,null,3,{"$nulls":10},1,null,5]
[14,"Бугульминский",null,null,3,2,{"$nulls":4},2,3,1,7,null,3,2,1,2,1,{"$nulls":4},2,8,37]
[15,"Буинский",{"$nulls":7},1,{"$nulls":3},1,null,null,1,{"$nulls":9},3]
[16,"Вахитовский-Приволжский",12,6,11,12,null,36,13,20,32,7,45,4,8,2,23,37,8,17,3,2,1,4,4,4,311]
[17,"Верхнеуслонский",{"$nulls":3},4,{"$nulls":4},10,2,8,11,{"$nulls":3},4,{"$nulls":8},39]
[18,"Высокогорский",{"$nulls":11},4,{"$nulls":5},1,{"$nulls":4},1,null,6]
[19,"Дрожжановский",{"$nulls":7},1,{"$nulls":16},1]
[20,"Елабужский",{"$nulls":7},4,{"$nulls":3},2,1,1,null,null,1,{"$nulls":4},1,1,2,13]
[21,"Заинский",{"$nulls":7},1,null,1,null,1,3,1,null,2,null,1,{"$nulls":4},1,4,15]
[22,"Зеленодольский",2,2,{"$nulls":3},2,null,1,null,2,1,{"$nulls":3},3,4,1,2,{"$nulls":5},3,23]
[23,"Кайбицкий",{"$nulls":12},1,{"$nulls":9},1,null,2]
[24,"Камско-Устьинский",{"$nulls":9},1,null,5,{"$nulls":4},1,{"$nulls":7},7]
[25,"Кировский-Московский",1,2,5,2,4,4,2,14,16,5,17,1,22,3,3,4,2,1,2,null,1,19,27,2,159]
[26,"Кукморский",null,1,{"$nulls":5},2,null,1,1,4,2,5,null,null,1,{"$nulls":5},1,4,22]
[27,"Лаишевский",{"$nulls":24},0]
[28,"Лениногорский",null,1,{"$nulls":7},1,1,2,null,3,1,1,1,3,{"$nulls":5},2,16]
[29,"Мамадышский",{"$nulls":5},1,null,5,{"$nulls":3},4,null,1,{"$nulls":9},9,20]
[30,"Менделеевский",null,2,{"$nulls":13},1,{"$nulls":8},3]
[31,"Мензелинский",{"$nulls":16},1,{"$nulls":7},1]
[32,"Муслюмовский",{"$nulls":5},2,null,1,{"$nulls":15},4,7]
[33,"Набережные Челны",7,16,16,2,4,6,4,10,2,5,8,3,22,6,8,18,8,13,null,null,1,4,24,10,197]
[34,"Нижнекамский",4,5,5,5,1,1,4,3,2,3,4,4,2,10,1,6,6,2,null,null,5,1,null,12,86]
[35,"Новошешминский",{"$nulls":11},1,{"$nulls":12},1]
[36,"Нурлатский",{"$nulls":9},2,null,4,2,{"$nulls":10},1,9]
[37,"Пестречинский",{"$nulls":12},2,1,{"$nulls":7},1,1,null,5]
[38,"Рыбно-Слободской",{"$nulls":7},1,{"$nulls":16},1]
[39,"Сабинский",null,3,{"$nulls":3},1,null,2,null,2,null,5,null,2,null,null,1,2,{"$nulls":4},4,9,31]
[40,"Сармановский",{"$nulls":12},1,{"$nulls":4},1,{"$nulls":4},2,1,5]
[41,"Советский",1,2,2,{"$nulls":4},5,null,3,null,null,1,1,25,6,3,1,null,1,1,7,1,1,61]
[42,"Спасский",{"$nulls":9},1,null,1,1,2,null,1,{"$nulls":7},1,7]
[43,"Тетюшский",{"$nulls":7},2,{"$nulls":3},1,2,{"$nulls":11},5]
[44,"Тукаевский",{"$nulls":12},1,{"$nulls":11},1]
[45,"Тюлячинского",{"$nulls":9},3,{"$nulls":12},2,1,6]
[46,"Черемшанский",{"$nulls":11},3,{"$nulls":12},3]
[47,"Чистопольский",null,1,1,null,null,1,{"$nulls":3},1,null,1,5,2,null,1,{"$nulls":6},1,3,17]
[48,"Ютазинский",{"$nulls":11},1,{"$nulls":4},1,{"$nulls":7},2]
[null,"Итого",{"$f":"SUM(C3:C50)","v":30},{"$f":"SUM(D3:D50)","v":51},{"$f":"SUM(E3:E50)","v":49},{"$f":"SUM(F3:F50)","v":33},{"$f":"SUM(G27:G50)","v":9},{"$f":"SUM(H3:H50)","v":58},26,84,73,61,91,88,90,51,75,113,45,56,5,{"$f":"SUM(V13:V50)","v":3},{"$f":"SUM(W3:W50)","v":11},{"$f":"SUM(X3:X50)","v":44},{"$f":"SUM(Y3:Y50)","v":90},{"$f":"SUM(Z3:Z50)","v":101}]

{"sheet":"РЭ ВсОШ школы","index":1,"n_rows":286,"n_cols":28,"rows_kept":286}
["№ п/п","Муниципалитет","ОУ","астрономия","история","рус яз","физика","франц язык","химия","экономика","биология","информатика","литература","математика","обж","общество","технология","экология","английский","география","мхк","испанский","итальянский","китайский","немецкий","право","физра"]
[1,"Авиастроительный-Ново-Савиновский","МБОУ  \"Средняя общеобразовательная школа с углубленным изучением отдельных предметов №62\" Авиастроительного района г.Казани",{"$nulls":11},4,{"$nulls":11},1,{"$f":"SUM(D2:AA2)","v":5}]
[2,"Авиастроительный-Ново-Савиновский","МБОУ \"Средняя общеобразовательная школа №132 с углубленным изучением иностранных языков\" Ново-Савиновского района г. Казани",{"$nulls":20},1,null,null,2,{"$f":"SUM(D3:AA3)","v":3}]
[3,"Авиастроительный-Ново-Савиновский","МБОУ \"Лицей №26 им. Мусы Джалиля\" Авиастроительного района г.Казани",{"$nulls":14},1,{"$nulls":5},1,{"$nulls":3},2]
[4,"Авиастроительный-Ново-Савиновский","МБОУ \"Гимназия №36\" Авиастроительного района г.Казани",{"$nulls":21},6,null,null,6]
[5,"Авиастроительный-Ново-Савиновский","ГАОУ \"Полилингвальный комплекс \"Адымнар - путь к знаниям и согласию\" г.Казани",{"$nulls":11},1,{"$nulls":3},3,{"$nulls":8},4]
[6,"Авиастроительный-Ново-Савиновский","МАОУ \"Лицей-интернат №7\" Ново-Савиновского района г. Казани",null,3,null,2,null,null,2,null,4,{"$nulls":3},4,null,null,4,1,{"$nulls":5},4,null,24]
[7,"Авиастроительный-Ново-Савиновский","МБОУ \"Гимназия  №33\" Авиастроительного района г.Казани",1,{"$nulls":8},1,{"$nulls":5},3,1,{"$nulls":5},1,null,7]
[8,"Авиастроительный-Ново-Савиновский","МБОУ \"Гимназия № 179-центр образования\" Ново-Савиновского района г.Казани",{"$nulls":7},2,{"$nulls":4},1,null,2,1,1,{"$nulls":7},7]
[9,"Авиастроительный-Ново-Савиновский","МБОУ \"Гимназия №155 с татарским языком обучения\" Ново-Савиновского района г. Казани",{"$nulls":7},2,{"$nulls":7},1,1,{"$nulls":7},4]
[10,"Авиастроительный-Ново-Савиновский","МБОУ «Гимназия №7 имени Героя России А.В.Козина» Ново-Савиновского района г.Казани. ",null,1,1,1,{"$nulls":5},1,4,null,2,1,null,null,1,3,{"$nulls":4},2,null,17]
[11,"Авиастроительный-Ново-Савиновский","МБОУ  \"Лицей №177\" Ново-Савиновского района г. Казани",{"$nulls":11},5,null,null,1,{"$nulls":9},6]
[12,"Авиастроительный-Ново-Савиновский","МБОУ «Средняя общеобразовательная татарско-русская школа №113 с углублённым изучением отдельных предметов имени Героя России М.Р. Ахметшина» Ново-Савиновского района г. Казани",{"$nulls":23},4,4]
[13,"Авиастроительный-Ново-Савиновский","Инженерный лицей-интернат КНИТУ КАИ",2,null,2,3,null,null,1,1,3,null,1,{"$nulls":12},1,14]
[14,"Авиастроительный-Ново-Савиновский","МБОУ \"Средняя общеобразовательная школа №170 с углубленным изучением отдельных предметов\" Ново-Савиновского района г. Казани",null,1,{"$nulls":5},1,{"$nulls":6},1,{"$nulls":9},3]
[15,"Авиастроительный-Ново-Савиновский","МБОУ \"Средняя общеобразовательная русско-татарская школа №103\" Ново-Савиновского района г. Казани",{"$nulls":14},1,{"$nulls":9},1]
[16,"Авиастроительный-Ново-Савиновский","МБОУ \"Средняя общеобразовательная школа №9 с углубленным изучением английского языка\" Ново-Савиновского района г. Казани",null,2,1,null,null,1,{"$nulls":3},1,{"$nulls":12},1,null,6]
[17,"Авиастроительный-Ново-Савиновский","МАОУ \"Лицей №146 \"Ресурс\" Ново-Савиновского района г. Казани\"",{"$nulls":22},1,null,1]
[18,"Авиастроительный-Ново-Савиновский","МБОУ \"Средняя общеобразовательная татарско-русская школа №71 с углубленным изучением отдельных предметов\" Ново-Савиновского района г. Казани\"",{"$nulls":5},1,{"$nulls":3},1,{"$nulls":14},2]
[19,"Авиастроительный-Ново-Савиновский","МБОУ \"Лицей №145\" Авиастроительного района г. Казани",{"$nulls":13},1,{"$nulls":10},1]
[20,"Авиастроительный-Ново-Савиновский","МБОУ «Средняя общеобразовательная школа №91» Ново-Савиновского района г.Казани",{"$nulls":9},1,{"$nulls":14},1]
[21,"Агрызский","МБОУ «Средняя общеобразовательная школа №2 города Агрыз Республики Татарстан»",{"$nulls":9},1,{"$nulls":14},1]
[22,"Азнакаевский  ","МБОУ  \"Средняя общеобразовательная школа № 5 с углубленным изучением английского языка\" города Азнакаево Азнакаевского муниципального района Республики Татарстан",{"$nulls":11},1,{"$nulls":12},1]
[23,"Азнакаевский  ","МБОУ \"Средняя общеобразовательная школа № 1 поселка городского типа Актюбинский\" Азнакаевского муниципального района Республики Татарстан",{"$nulls":23},1,1]
[24,"Азнакаевский  ","МБОУ \"Средняя общеобразовательная школа № 7 города Азнакаево\" Азнакаевского муниципального района Республики Татарстан",{"$nulls":23},1,1]
[25,"Азнакаевский  ","МБОУ «Средняя общеобразовательная школа №3 города Азнакаево» Азнакаевского муниципального района Республики Татарстан",null,null,1,{"$nulls":21},1]
[26,"Актанышский","ГАОУ \"Гуманитарная гимназия-интернат для одаренных детей\"",null,null,1,{"$nulls":4},2,null,2,null,null,1,1,null,1,null,3,{"$nulls":4},1,3,15]
[27,"Актанышский","МБОУ \"Актанышская средняя общеобразовательная школа №2 с углубленным изучением отдельных предметов\"",{"$nulls":9},3,null,1,null,1,{"$nulls":10},5]
[28,"Актанышский","МБОУ «Актанышская средняя общеобразовательная школа №1» Актанышского муниципального района Республики Татарстан",null,1,{"$nulls":11},1,{"$nulls":9},1,3]
[29,"Алексеевский ","МБОУ \"Билярская средняя общеобразовательная школа\"\" Алексеевского муниципального района Республики Татарстан\"",{"$nulls":7},1,{"$nulls":16},1]
[30,"Алексеевский ","МБОУ Алексеевская средняя общеобразовательная школа №3 им. Г.С. Боровикова Алексеевского муниципального района Республики Татарстан",{"$nulls":9},1,{"$nulls":14},1]
[31,"Алексеевский ","МБОУ Алексеевская средняя общеобразовательная школа №1 Алексеевского муниципального района Республики Татарстан",{"$nulls":15},1,{"$nulls":8},1]
[32,"Алькеевский  ","МБОУ \"Чувашско-Бродская средняя общеобразовательная школа\" Алькеевского муниципального района Республики Татарстан",{"$nulls":9},1,{"$nulls":14},1]
[33,"Алькеевский  ","МБОУ \"Старо-Матакская средняя общеобразовательная школа\" Алькеевского муниципального района Республики Татарстан",{"$nulls":22},1,null,1]
[34,"Альметьевский ","МАОУ «Средняя общеобразовательная школа №10 с углубленным изучением отдельных предметов» города Альметьевска Республики Татарстан",null,1,{"$nulls":19},1,null,null,2]
[35,"Альметьевский ","МАОУ \"Гимназия №5\" г. Альметьевска Республики Татарстан",{"$nulls":15},4,{"$nulls":8},4]
[36,"Альметьевский ","МАОУ \"Инженерный лицей\" г.Альметьевска Республики Татарстан",{"$nulls":15},1,{"$nulls":8},1]
[37,"Альметьевский ","МАОУ \"Лицей № 2\" г.Альметьевска Республики Татарстан",{"$nulls":7},1,{"$nulls":4},1,null,null,2,{"$nulls":8},4]
[38,"Альметьевский ","МАОУ \"Средняя общеобразовательная школа №16\" г. Альметьевска Республики Татарстан",{"$nulls":15},1,1,{"$nulls":7},2]
[39,"Альметьевский ","МАОУ \"Лицей-интернат №1\" г.Альметьевска Республики Татарстан",{"$nulls":8},2,{"$nulls":15},2]
[40,"Альметьевский ","МБОУ \"Гимназия №1 им.Р. Фахретдина\" г.Альметьевска Республики Татарстан",{"$nulls":15},1,{"$nulls":8},1]
[41,"Альметьевский ","МАОУ \"Средняя общеобразовательная школа № 17\" г.Альметьевска Республики Татарстан",{"$nulls":14},1,{"$nulls":7},1,null,2]
[42,"Альметьевский ","МБОУ \"Нижнемактаминская средняя общеобразовательная школа №2\" Альметьевского муниципального района Республики Татарстан",{"$nulls":11},1,{"$nulls":3},1,{"$nulls":8},2]
[43,"Альметьевский ","МБОУ \"Средняя общеобразовательная школа № 20\" г.Альметьевска Республики Татарстан",{"$nulls":15},1,{"$nulls":8},1]
[44,"Альметьевский ","МБОУ \"Средняя общеобразовательная школа № 24\" г.Альметьевска Республики Татарстан",{"$nulls":15},2,{"$nulls":8},2]
[45,"Альметьевский ","МАОУ \"Средняя общеобразовательная школа № 10 с углубленным изучением отдельных предметов\" г.Альметьевска Республики Татарстан",{"$nulls":16},1,{"$nulls":5},1,null,2]
[46,"Альметьевский ","МБОУ \"Средняя общеобразовательная школа №3\" г. Альметьевска Республики Татарстан",{"$nulls":23},1,1]
[47,"Альметьевский ","МАОУ «Гимназия №5» г. Альметьевска Республики Татарстан",{"$nulls":12},1,{"$nulls":11},1]
[48,"Альметьевский ","МБОУ  \"Средняя общеобразовательная школа №12\" г. Альметьевска Республики Татарстан",{"$nulls":5},2,{"$nulls":18},2]
[49,"Альметьевский ","МБОУ«Гимназия №1 им.Р.Фахретдина» г.Альметьевска Республики Татарстан",{"$nulls":13},1,{"$nulls":10},1]
[50,"Альметьевский ","МБОУ «Старомихайловская средняя общеобразовательная школа» Альметьевского муниципального района Республики Татарстан",{"$nulls":13},1,{"$nulls":10},1]
[51,"Альметьевский ","МБОУ \"Средняя общеобразовательная школа №25 им. 70-летия нефти Татарстана\" г. Альметьевска Республики Татарстан",{"$nulls":9},1,{"$nulls":13},1,2]
[52,"Альметьевский ","МАОУ «Средняя общеобразовательная школа № 7» г.Альметьевска Республики Татарстан",{"$nulls":9},1,{"$nulls":14},1]
[53,"Апастовский ","МБОУ \"Апастовская средняя общеобразовательная школа с углубленным изучением отдельных предметов\" Апастовского муниципального района  Республики Татарстан",{"$nulls":16},1,{"$nulls":7},1]
[54,"Арский ","МБОУ \"Лесхозская средняя общеобразовательная школа\" Арского муниципального района Республики Татарстан",{"$nulls":12},1,null,1,{"$nulls":9},2]
[55,"Арский ","МБОУ  \"Арская средняя общеобразовательная школа №1 им.В.Ф.Ежкова с углубленным изучением отдельных предметов\" Арского муниципального района Республики Татарстан",{"$nulls":9},1,null,2,2,{"$nulls":4},3,{"$nulls":5},1,9]
[56,"Арский ","МБОУ \"Хасаншаихская основная общеобразовательная школа\" Арского муниципального района Республики Татарстан",{"$nulls":23},1,1]
[57,"Арский ","МБОУ - Арская гимназия №5 Арского муниципального района Республики Татарстан",{"$nulls":17},1,{"$nulls":6},1]
[58,"Арский ","МБОУ \"Арская средняя общеобразовательная школа №1\" Арского муниципального района Республики Татарстан",{"$nulls":22},2,null,2]
[59,"Арский ","МБОУ \"Арская средняя общеобразовательная школа №2\" Арского муниципального района Республики Татарстан",{"$nulls":9},1,null,null,1,{"$nulls":4},1,{"$nulls":4},1,1,5]
[60,"Арский ","МБОУ «Ашитбашская средняя общеобразовательная школа имени Габдуллы Тукая» Арского муниципального района Республики Татарстан",{"$nulls":7},1,{"$nulls":5},1,{"$nulls":10},2]
[61,"Бавлинский","МБОУ \"Средняя  общеобразовательная школа №2 с углубленным изучением отдельных предметов\" Бавлинского муниципального района Республики Татарстан",{"$nulls":23},1,1]
[62,"Бавлинский","МБОУ «Средняя общеобразовательная школа №3 имени Ю.А.Гагарина» Бавлинского муниципального района Республики Татарстан",null,1,{"$nulls":22},1]
[63,"Балтасинский ","МБОУ \"Салаусский многопрофильный лицей\" Балтасинского муниципального района Республики Татарстан",{"$nulls":11},2,{"$nulls":12},2]
[64,"Балтасинский ","МБОУ \"Балтасинская средняя общеобразовательная школа\" Балтасинского муниципального района Республики Татарстан",{"$nulls":9},1,{"$nulls":12},1,null,2]
[65,"Балтасинский ","МБОУ \"Балтасинская гимназия\" Балтасинского муниципального района Республики Татарстана",{"$nulls":11},1,{"$nulls":12},1]
[66,"Бугульминский","МБОУ средняя общеобразовательная школа № 6 с углубленным изучением отдельных предметов Бугульминского муниципального района Республики Татарстан",null,null,2,{"$nulls":5},1,1,{"$nulls":3},1,null,1,null,1,{"$nulls":6},{"$f":"SUM(D67:AA67)","v":7}]
[67,"Бугульминский","МБОУ cредняя общеобразовательная школа №3 с углубленным изучением отдельных предметов Бугульминского муниципального района Республики Татарстан",null,null,1,{"$nulls":8},1,{"$nulls":12},2]
[68,"Бугульминский","МБОУ средняя общеобразовательная школа №1 с углубленным изучением отдельных предметов Бугульминского муниципального района Республики Татарстан",{"$nulls":11},2,{"$nulls":10},1,null,3]
[69,"Бугульминский","МБОУ татарская гимназия № 14 имени Хади Атласи Бугульминского муниципального района Республики Татарстан",{"$nulls":11},4,{"$nulls":12},4]
[70,"Бугульминский","МБОУ лицей № 2 Бугульминского муниципального района Республики Татарстан",{"$nulls":3},2,{"$nulls":5},2,1,null,null,1,1,null,1,{"$nulls":5},1,7,16]
[71,"Бугульминский","МБОУ гимназия №7 Бугульминского муниципального района Республики Татарстан",{"$nulls":23},1,1]
[72,"Бугульминский","МБОУ лицей-интернат имени Мустафы Онджеля Бугульминского муниципального района Республики Татарстан",{"$nulls":8},1,{"$nulls":5},1,null,1,{"$nulls":7},3]
[73,"Бугульминский","МБОУ  Карабашская средняя общеобразовательная школа № 2 Бугульминского муниципального района Республики Татарстан",{"$nulls":13},1,{"$nulls":10},1]
[74,"Буинский ","МБОУ \"Лицей №2\" города Буинска Буинского муниципального района Республики Татарстан",{"$nulls":14},1,{"$nulls":9},1]
[75,"Буинский ","МБОУ  \"Средняя общеобразовательная школа имени академика Р.З.Сагдеева\" Буинского муниципального района Республики Татарстан",{"$nulls":11},1,{"$nulls":12},1]
[76,"Буинский ","МБОУ \"Новотинчалинская средняя общеобразовательная школа имени Н.Г.Фаизова Буинского муниципального района Республики Татарстан\"",{"$nulls":7},1,{"$nulls":16},1]
[77,"Вахитовский-Приволжский","МАОУ «Лицей №131» Вахитовского района г. Казани",null,1,5,6,null,15,4,1,5,null,21,null,2,null,1,5,2,1,null,1,null,4,1,null,75]
[78,"Вахитовский-Приволжский","МАОУ «Средняя общеобразовательная школа №39 с углубленным изучением английского языка»",{"$nulls":9},1,null,null,2,null,null,7,1,8,null,1,{"$nulls":4},20]
[79,"Вахитовский-Приволжский","МАОУ «Гимназия №19» Приволжского района г.Казани",null,3,1,1,null,5,4,1,null,2,2,1,3,null,2,6,{"$nulls":4},1,null,3,2,37]
[80,"Вахитовский-Приволжский","МАОУ \"Средняя общеобразовательная школа №18 с углубленным изучением английского языка\" Вахитовского района г.Казани",{"$nulls":14},1,1,null,null,1,{"$nulls":5},3]
[81,"Вахитовский-Приволжский","Общеобразовательной школы-интерната \"IT- лицей\" ФГАОУ ВО \"Казанский (Приволжский) федеральный университет\"",11,1,2,3,null,10,2,2,16,null,7,null,null,2,1,3,1,1,1,{"$nulls":5},63]
[82,null,"Общеобразовательная школа-интернат \"Лицей имени Н.И. Лобачевского\" ФГАОУ ВО \"Казанский (Приволжский) федеральный университет\"",{"$nulls":3},1,null,4,null,3,10,null,8,{"$nulls":3},11,3,null,1,{"$nulls":6},41]
[83,"Вахитовский-Приволжский","АНОО \"Международная школа Казани\"",{"$nulls":10},1,{"$nulls":4},2,{"$nulls":8},3]
[84,"Вахитовский-Приволжский","МАОУ для детей, проявивших выдающиеся способности «Средняя общеобразовательная школа-интернат «Специализированный олимпиадно-научный центр «СОлНЦе» Вахитовского района г. Казани",null,null,1,1,null,1,1,8,1,null,4,{"$nulls":3},4,4,null,null,1,{"$nulls":5},26]
[85,"Вахитовский-Приволжский","МБОУ \"Гимназия №27 с татарским языком обучения\" Вахитовского района г.Казани",{"$nulls":15},1,{"$nulls":8},1]
[86,"Вахитовский-Приволжский","МБОУ \"Гимназия №3\" Вахитовского района г.Казани",{"$nulls":7},1,{"$nulls":7},2,{"$nulls":8},3]
[87,"Вахитовский-Приволжский","МБОУ \"Средняя общеобразовательная школа №12\" Вахитовского района г.Казани",{"$nulls":9},1,{"$nulls":4},1,1,{"$nulls":8},3]
[88,"Вахитовский-Приволжский","МБОУ «Гимназия №18 с татарским языком обучения» Приволжского района г. Казани",{"$nulls":15},1,{"$nulls":8},1]
[89,"Вахитовский-Приволжский","ФГКОУ \"Казанское суворовское военное училище Министерства обороны Российской Федерации\"",{"$nulls":7},2,{"$nulls":6},1,1,3,{"$nulls":7},7]
[90,"Вахитовский-Приволжский","ГБОУ \"Казанская кадетская школа-интернат имени Героя Советского Союза Б.К.Кузнецова\" ",{"$nulls":11},2,{"$nulls":11},1,3]
[92,"Вахитовский-Приволжский","МБОУ «Многопрофильный лицей №186 - \"Перспектива\" Приволжского района г. Казани",null,null,1,{"$nulls":20},1,2]
[93,"Вахитовский-Приволжский","МБОУ \"Татаро-английская гимназия №16\" Приволжского района г. Казани",{"$nulls":6},1,{"$nulls":4},1,{"$nulls":4},1,{"$nulls":7},3]
[94,"Вахитовский-Приволжский","МБОУ \"Лицей №83 - Центр образования\" Приволжского района г.Казани",null,null,1,{"$nulls":4},1,null,null,1,{"$nulls":3},1,{"$nulls":9},4]
[95,"Вахитовский-Приволжский","МБОУ \"Лицей №5\" Вахитовского района г. Казани",null,1,{"$nulls":22},1]
[96,"Вахитовский-Приволжский","МБОУ \"Гимназия №6\" Приволжского района г.Казани",1,{"$nulls":23},1]
[97,"Вахитовский-Приволжский","МБОУ \"Гимназия №96\" Вахитовского района г. Казани",{"$nulls":7},1,null,1,null,null,1,{"$nulls":4},3,{"$nulls":6},6]
[98,"Вахитовский-Приволжский","МБОУ \"Гимназия №28\" Вахитовского района г.Казани",{"$nulls":17},1,{"$nulls":6},1]
[99,"Вахитовский-Приволжский","МБОУ \"Гимназия №40\" Приволжского района г. Казани",{"$nulls":17},2,{"$nulls":6},2]
[100,"Вахитовский-Приволжский","МБОУ \"Лицей №116 имени Героя Советского Союза А.С. Умеркина\" Вахитовского района г. Казани\"",{"$nulls":5},1,{"$nulls":3},1,1,{"$nulls":13},3]
[101,"Вахитовский-Приволжский","МБОУ «Лицей №35 - образовательный центр «Галактика» Приволжского района г.Казани",{"$nulls":9},1,{"$nulls":14},1]
[102,"Верхнеуслонский ","МБОУ \"Верхнеуслонская средняя общеобразовательная школа\" Верхнеуслонского муниципального района Республики Татарстан",{"$nulls":11},2,{"$nulls":12},2]
[103,"Верхнеуслонский ","МБОУ \"Матюшинская средняя общеобразовательная школа\" Верхнеуслонского муниципального района Республики Татарстан",{"$nulls":11},3,{"$nulls":12},3]
[104,"Верхнеуслонский ","ГАОУ \"Лицей Иннополис\"",{"$nulls":3},4,{"$nulls":4},10,2,8,6,{"$nulls":3},3,{"$nulls":8},33]
[105,"Высокогорский ","МБОУ  \"Дубъязская средняя общеобразовательная школа Высокогорского муниципального района Республики Татарстан\"",{"$nulls":11},4,{"$nulls":12},4]
[106,"Высокогорский ","МБОУ  \"Высокогорская средняя общеобразовательная школа №1 Высокогорского муниципального района Республики Татарстан\"",{"$nulls":17},1,{"$nulls":6},1]
[107,"Высокогорский ","МБОУ \"Высокогорская средняя общеобразовательная школа №2\" Высокогорского муниципального района Республики Татарстан",{"$nulls":22},1,null,1]
[108,"Дрожжановский ","МБОУ \"Хорновар-Шигалинская средняя общеобразовательная школа имени Героя Советского Союза Юхвитова Петра Сергеевича\" Дрожжановского муниципального района Республики Татарстан",{"$nulls":7},1,{"$nulls":16},1]
[109,"Елабужский ","МБОУ\n \"Гимназия №1-Центр национального образования\" Елабужского муниципального района Республики Татарстан",{"$nulls":11},2,{"$nulls":12},2]
[110,"Елабужский ","МБОУ \"Гимназия №4\" Елабужского муниципального района Республики Татарстан",{"$nulls":7},1,{"$nulls":13},1,null,1,3]
[111,"Елабужский ","ФГКОУ \"Елабужское суворовское военное училище Министерства внутренних дел Российской Федерации\"",{"$nulls":23},1,1]
[112,"Елабужский ","МБОУ \"Средняя общеобразовательная школа №9 с углубленным изучением отдельных предметов\" Елабужского муниципального района Республики Татарстан",{"$nulls":16},1,{"$nulls":7},1]
[113,"Елабужский ","МБОУ \"Средняя общеобразовательная школа №8\" Елабужского муниципального района Республики Татарстан",{"$nulls":12},1,{"$nulls":9},1,null,2]
[114,"Елабужский ","МБОУ \"Средняя общеобразовательная школа №10\" Елабужского муниципального района Республики Татарстан",{"$nulls":7},3,{"$nulls":5},1,{"$nulls":10},4]
[115,"Заинский ","МБОУ «Заинская средняя общеобразовательная школа №2\" Заинского муниципального района Республики Татарстан",{"$nulls":9},1,null,null,1,{"$nulls":9},1,null,3]
[116,"Заинский ","МБОУ \"Заинская средняя общеобразовательная школа №3\" Заинского муниципального района Республики Татарстан",{"$nulls":12},1,null,null,1,{"$nulls":7},1,3]
[117,"Заинский ","МБОУ «Заинская средняя общеобразовательная школа №7 с углубленным изучением отдельных предметов» Заинского муниципального района Республики Татарстан",{"$nulls":11},1,{"$nulls":12},1]
[118,"Заинский ","МБОУ \"Заинская средняя общеобразовательная школа №4\" Заинского муниципального района Республики Татарстан",{"$nulls":12},1,null,null,1,{"$nulls":7},1,3]
[119,"Заинский ","МБОУ \"Заинская средняя общеобразовательная школа №6\" Заинского муниципального района Республики Татарстан",{"$nulls":13},1,{"$nulls":3},1,{"$nulls":5},1,3]
[120,"Заинский ","МБОУ «Кадыровская средняя общеобразовательная школа» Заинского муниципального района Республики Татарстан",{"$nulls":23},1,1]
[121,"Заинский ","МБОУ \"Поручиковская основная общеобразовательная школа\" Заинского муниципального района Республики Татарстан",{"$nulls":7},1,{"$nulls":16},1]
[122,"Зеленодольский","МБОУ \"Лицей №9 имени А. С. Пушкина Зеленодольского муниципального района Республики Татарстан\"",1,{"$nulls":4},1,{"$nulls":8},1,1,null,1,{"$nulls":6},5]
[123,"Зеленодольский","МБОУ \"Гимназия №3 Зеленодольского муниципального района Республики Татарстан\"",1,1,{"$nulls":12},1,2,1,1,{"$nulls":6},7]
[124,"Зеленодольский","МБОУ \"Средняя общеобразовательная школа №11 с углублённым изучением отдельных предметов Зеленодольского муниципального района Республики Татарстан\"",{"$nulls":15},1,{"$nulls":8},1]
[125,"Зеленодольский","МБОУ \"Гимназия №5 Зеленодольского муниципального района Республики Татарстан\"",{"$nulls":23},3,3]
[126,"Зеленодольский","Лицей-интернат для одаренных детей с углубленным изучением химии -филиал ФГБОУ ВО \"КНИТУ\" в п. Дубровка Республики Татарстан",null,1,{"$nulls":3},1,{"$nulls":3},1,{"$nulls":4},1,{"$nulls":9},4]
[127,"Зеленодольский","МБОУ «Раифская средняя общеобразовательная школа Зеленодольского муниципального района Республики Татарстан»",{"$nulls":7},1,{"$nulls":16},1]
[128,"Зеленодольский","МБОУ \"Осиновская гимназия имени С. К. Гиматдинова Зеленодольского муниципального района Республики Татарстан\"",{"$nulls":10},1,{"$nulls":13},1]
[129,"Зеленодольский","МБОУ «Средняя общеобразовательная школа №15 с углубленным изучением отдельных предметов Зеленодольского муниципального района Республики Татарстан»",{"$nulls":9},1,{"$nulls":14},1]
[130,"Кайбицкий","МБОУ \"Хозесановская средняя общеобразовательная школа Кайбицкого муниципального района Республики Татарстан\"",{"$nulls":22},1,null,1]
[131,"Кайбицкий","МБОУ «Большекайбицкая средняя общеобразовательная школа - центр образования цифрового и гуманитарного профилей Кайбицкого муниципального района Республики Татарстан»",{"$nulls":12},1,{"$nulls":11},{"$f":"SUM(D131:AA131)","v":1}]
[132,"Камско-Устьинский","МБОУ \"Затонская средняя общеобразовательная школа имени В.П. Муравьёва\" Камско-Устьинского муниципального района Республики Татарстан",{"$nulls":11},4,{"$nulls":12},4]
[133,"Камско-Устьинский","МБОУ \"Камскоустьинская средняя общеобразовательная школа\" Камско-Устьинского  муниципального района Республики Татарстан",{"$nulls":11},1,{"$nulls":12},1]
[134,"Камско-Устьинский","МБОУ «Старо-Казеевская средняя общеобразовательная школа» Староказеевского сельского поселения Камско-Устьинского муниципального района Республики Татарстан",{"$nulls":9},1,{"$nulls":14},1]
[135,"Камско-Устьинский","МБОУ \"Теньковская средняя общеобразовательная школа\" Теньковского сельского поселения Камско-Устьинского муниципального района Республики Татарстан",{"$nulls":16},1,{"$nulls":7},1]
[136,"Кировский-Московский","МБОУ\n \"Средняя общеобразовательная школа № 99\" Московского района г. Казани",{"$nulls":11},1,{"$nulls":12},1]
[137,"Кировский-Московский","МАОУ \"Лицей-интернат № 2\" Московского района г.Казани",1,null,1,2,null,2,2,6,15,null,15,null,16,null,null,2,1,{"$nulls":3},1,null,24,null,88]
[138,"Кировский-Московский","МБОУ \"Гимназия № 122 имени Ж.А.Зайцевой\" Московского района г. Казани",null,null,2,null,null,1,null,2,null,1,1,null,2,1,null,1,null,null,1,{"$nulls":3},3,null,15]
[139,"Кировский-Московский","МБОУ \"Гимназия № 94\" Московского района г.Казани",null,null,1,{"$nulls":18},19,null,null,20]
[140,"Кировский-Московский","МАОУ \"Гимназия - интернат №4\" Кировского района г.Казани",{"$nulls":5},1,null,2,null,2,{"$nulls":3},1,1,1,null,null,1,{"$nulls":5},9]
[141,"Кировский-Московский","МБОУ \"Гимназия № 9\" Московского района г. Казани",{"$nulls":4},4,null,null,1,{"$nulls":5},1,1,{"$nulls":9},7]
[142,"Кировский-Московский","МБОУ \"Татарская гимназия № 17 имени Г.Ибрагимова\" Московского района г.Казани",null,null,1,{"$nulls":4},1,{"$nulls":15},2,4]
[143,"Кировский-Московский","МБОУ \"Гимназия № 75\" Московского района г. Казани",null,1,{"$nulls":14},1,{"$nulls":7},2]
[145,"Кировский-Московский","МБОУ \"Татарская гимназия № 2 имени Шигабутдина Марджани при Казанском Федеральном университете\" Московского района города Казани",null,1,{"$nulls":7},1,null,null,1,{"$nulls":11},3]
[146,"Кировский-Московский","МБОУ \"Средняя общеобразовательная татарско-русская школа № 34\" Московского района г.Казани",{"$nulls":9},1,{"$nulls":7},1,{"$nulls":6},2]
[147,"Кировский-Московский","МБОУ \"Татарская гимназия №15\" Кировского района г.Казани",{"$nulls":14},1,{"$nulls":9},1]
[148,"Кировский-Московский","МБОУ \"Гимназия № 102 имени М.С.Устиновой\" Московского района города Казани\"",{"$nulls":7},1,1,null,1,null,1,{"$nulls":11},4]
[149,"Кировский-Московский","МБОУ \"Средняя общеобразовательная школа №137 с углубленным изучением отдельных предметов\" Кировского района г.Казани",{"$nulls":7},1,{"$nulls":16},1]
[150,"Кировский-Московский","МБОУ \"Средняя общеобразовательная школа № 151 с углублённым изучением отдельных предметов\" Кировского района г. Казани",{"$nulls":12},2,{"$nulls":11},2]
[151,"Кукморский ","МБОУ \"Гимназия №1 имени Ч.Т. Айтматова\" п.г.т. Кукмор Кукморского муниципального района Республики Татарстан",{"$nulls":11},1,{"$nulls":10},1,null,2]
[152,"Кукморский ","МБОУ «Большекукморская средняя школа с углубленным изучением отдельных предметов имени М.М. Мансурова» Кукморского муниципального района Республики Татарстан",{"$nulls":11},1,{"$nulls":12},1]
[153,"Кукморский ","МБОУ «Многопрофильный лицей им.А.М.Булатова п.г.т. Кукмор» Кукморского муниципального района Республики Татарстан",{"$nulls":7},1,{"$nulls":3},1,null,1,{"$nulls":10},3]
[154,"Кукморский ","МБОУ «Средняя общеобразовательная школа им. С.А.Ахтямова с.Манзарас» Кукморского муниципального района Республики Татарстан",{"$nulls":9},1,null,1,1,{"$nulls":11},3]
[155,"Кукморский ","МБОУ \"Кукморская средняя школа №3\" Кукморского муниципального района Республики Татарстан",{"$nulls":7},1,{"$nulls":5},1,{"$nulls":10},2]
[156,"Кукморский ","МБОУ \"Кукморская средняя школа №4\" Кукморского муниципального района Республики Татарстан",{"$nulls":13},3,null,null,1,{"$nulls":6},4,8]
[157,"Кукморский ","МБОУ «Гимназия с.Большой Сардек имени К.Ф. Шакирова» Кукморского муниципального района Республики Татарстан",null,1,{"$nulls":22},1]
[158,"Кукморский ","МБОУ «Средняя общеобразовательная школа с. Село-Чура» Кукморского муниципального района Республики Татарстан",{"$nulls":12},1,{"$nulls":11},1]
[159,"Кукморский ","МБОУ «Средняя общеобразовательная школа им. Г.Г.Гарифуллина с.Ядыгерь» Кукморского муниципального района Республики Татарстан",{"$nulls":10},1,{"$nulls":13},1]
[160,"Лениногорский ","МБОУ «Лицей №12 г.Лениногорска» муниципального образования «Лениногорский муниципальный район» Республики Татарстан",{"$nulls":15},1,null,1,{"$nulls":6},2]
[161,"Лениногорский ","МБОУ «Средняя общеобразовательная школа № 7 г.Лениногорска\" муниципального образования \"Лениногорский муниципальный район\" Республики Татарстан",{"$nulls":11},2,{"$nulls":12},2]
[162,"Лениногорский ","МБОУ «Средняя общеобразовательная школа №6 г.Лениногорска» муниципального образования \"Лениногорский муниципальный район\" Республики Татарстан",null,1,{"$nulls":7},1,{"$nulls":4},1,{"$nulls":9},3]
[163,"Лениногорский ","МБОУ \"Средняя общеобразовательная школа №2 г.Лениногорска\" муниципального образования \"Лениногорский муниципальный район\" Республики Татарстан",{"$nulls":16},1,2,{"$nulls":5},2,5]
[164,"Лениногорский ","МБОУ \"Средняя общеобразовательная школа №10 г. Лениногорска\" муниципального образования \"Лениногорский муниципальный район\"  Республики Татарстан",{"$nulls":13},3,{"$nulls":10},3]
[165,"Лениногорский ","МБОУ «Гимназия №11 города Лениногорска» муниципального образования «Лениногорский муниципальный район» Республики Татарстан",{"$nulls":10},1,{"$nulls":13},1]
[166,"Мамадышский ","МБОУ  \"Средняя общеобразовательная школа №3 города Мамадыш\" Мамадышского муниципального района Республики Татарстан",{"$nulls":7},1,{"$nulls":3},2,null,1,{"$nulls":10},4]
[167,"Мамадышский ","МБОУ\n \"Лицей №2 имени академика К.А. Валиева г. Мамадыш\" Мамадышского муниципального района Республики Татарстан",{"$nulls":7},2,{"$nulls":3},1,{"$nulls":11},1,4]
[168,"Мамадышский ","МБОУ\n \"Таканышская средняя общеобразовательная школа\" Мамадышского муниципального района Республики Татарстан",{"$nulls":11},1,{"$nulls":12},1]
[169,"Мамадышский ","МБОУ \"Средняя общеобразовательная школа №1 г. Мамадыш\" Мамадышского муниципального района Республики Татарстан",{"$nulls":5},1,null,1,{"$nulls":15},2,4]
[170,"Мамадышский ","МБОУ \"Средняя общеобразовательная школа №4 г. Мамадыш\" Мамадышского муниципального района Республики Татарстан",{"$nulls":23},6,6]
[172,"Мамадышский ","МБОУ \"Нижнеошминская средняя общеобразовательная школа\" Мамадышского муниципального района Республики Татарстан",{"$nulls":7},1,{"$nulls":16},1]
[173,"Менделеевский ","МБОУ \"Тихоновская средняя общеобразовательная школа имени Д.Г.Щербакова\" Менделеевского муниципального района Республики Татарстан",{"$nulls":15},1,{"$nulls":8},1]
[174,"Менделеевский ","МБОУ \"Гимназия №1\" Менделеевского муниципального района Республики Татарстан",null,2,{"$nulls":22},2]
[175,"Мензелинский ","МБОУ \"Средняя общеобразовательная школа №2\" г.Мензелинска Республики Татарстан",{"$nulls":16},1,{"$nulls":7},1]
[176,"Муслюмовский ","МБОУ Муслюмовский лицей Муслюмовского муниципального района Республики Татарстан",{"$nulls":5},2,{"$nulls":17},4,6]
[177,"Муслюмовский ","МБОУ \"Муслюмовская гимназия\" Муслюмовского муниципального района Республики Татарстан",{"$nulls":7},1,{"$nulls":16},1]
[178,"Набережные Челны","МАОУ города  Набережные Челны  \"Лицей №78 им. А.С.Пушкина\" ",1,5,5,1,null,3,null,2,1,1,2,null,14,null,null,3,null,2,null,null,1,null,9,null,50]
[179,"Набережные Челны","МАОУ города Набережные Челны \"Средняя общеобразовательная школа №35 с углубленным изучением отдельных предметов\"",{"$nulls":21},2,null,1,3]
[180,"Набережные Челны","МАОУ города Набережные Челны \"Гимназия № 61\" ",{"$nulls":15},2,null,1,{"$nulls":6},3]
[181,null,"МАОУ города Набережные Челны \"Средняя общеобразовательная школа № 56\"",{"$nulls":22},1,null,1]
[182,"Набережные Челны","МАОУ города Набережные Челны \"Гимназия №57\"",null,3,{"$nulls":7},1,{"$nulls":5},2,1,3,{"$nulls":4},1,null,11]
[183,"Набережные Челны","МБОУ \"Гимназия №26\" города Набережные Челны",2,1,5,1,null,1,3,null,1,2,5,null,2,null,2,2,null,3,{"$nulls":3},1,3,2,36]
[184,"Набережные Челны","МАОУ города Набережные Челны \"Гимназия № 76\"",1,1,3,{"$nulls":3},1,{"$nulls":5},3,null,null,3,{"$nulls":5},1,1,null,14]
[185,"Набережные Челны","МАОУ города Набережные Челны \"Гимназия №77\"",1,5,2,null,null,1,{"$nulls":6},2,null,null,2,4,2,{"$nulls":4},4,null,23]
[186,"Набережные Челны","МАОУ города Набережные Челны \"Лицей-интернат №84 имени Гали Акыша\"",{"$nulls":11},1,{"$nulls":3},1,{"$nulls":6},1,null,3]
[187,"Набережные Челны","МАОУ города Набережные Челны \"Средняя общеобразовательная школа №34 с углубленным изучением отдельных предметов\"",{"$nulls":15},1,{"$nulls":8},1]
[188,"Набережные Челны","МАОУ города Набережные Челны \"Средняя общеобразовательная школа №50 с углубленным изучением отдельных предметов\"",{"$nulls":12},1,null,null,1,{"$nulls":8},2]
[189,"Набережные Челны","МАОУ города Набережные Челны\n \"Средняя общеобразовательная школа № 15\"",{"$nulls":11},1,{"$nulls":12},1]
[190,"Набережные Челны","МАОУ города Набережные Челны \"Средняя общеобразовательная школа №51»",null,1,{"$nulls":22},1]
[191,"Набережные Челны","МАОУ города Набережные Челны \"Средняя общеобразовательная школа №1\"",{"$nulls":7},1,{"$nulls":14},1,null,2]
[192,"Набережные Челны","МАОУ города Набережные Челны \"Лицей инновационных технологий №36\"",null,null,1,{"$nulls":7},1,{"$nulls":13},2]
[193,"Набережные Челны","МБОУ \"Гимназия № 54\" г.Набережные Челны",{"$nulls":15},1,{"$nulls":8},1]
[194,"Набережные Челны","МБОУ\n \"Средняя общеобразовательная школа №23\" города Набережные Челны",{"$nulls":11},1,{"$nulls":12},1]
[195,"Набережные Челны","МБОУ \"Средняя общеобразовательная школа №32 с углубленным изучением отдельных предметов\" г.Набережные Челны",{"$nulls":13},4,{"$nulls":3},1,{"$nulls":5},5,10]
[196,"Набережные Челны","МБОУ \"Средняя общеобразовательная школа № 46 имени кавалера ордена Мужества Дмитрия Бадретдинова\" г.Набережные Челны",{"$nulls":23},1,1]
[197,"Набережные Челны","МБОУ \"Средняя общеобразовательная школа № 60\" города Набережные Челны",1,{"$nulls":13},1,{"$nulls":7},1,1,{"$f":"SUM(D195:AA195)","v":4}]
[198,"Набережные Челны","МБОУ «Средняя общеобразовательная школа № 30» города Набережные Челны",{"$nulls":16},1,{"$nulls":7},1]
[199,"Набережные Челны","МБОУ \"Лицей-интернат №79\" города Набережные Челны",{"$nulls":16},1,1,{"$nulls":4},1,null,3]
[200,"Набережные Челны","МБОУ \"Средняя общеобразовательная школа №28\" города Набережные Челны",{"$nulls":16},1,{"$nulls":7},1]
[201,"Набережные Челны","МБОУ «Средняя общеобразовательная школа №41» г. Набережные Челны",1,{"$nulls":6},2,{"$nulls":6},1,{"$nulls":7},1,null,5]
[202,"Набережные Челны","МБОУ \"Средняя общеобразовательная школа № 6\" города Набережные Челны",{"$nulls":7},2,{"$nulls":6},1,{"$nulls":9},3]
[203,"Набережные Челны","МБОУ \"Средняя общеобразовательная школа №19 с углубленным изучением отдельных предметов\" города Набережные Челны",{"$nulls":7},2,{"$nulls":6},2,{"$nulls":9},4]
[204,"Набережные Челны","МБОУ \"Гимназия №29\" города Набережные Челны",{"$nulls":14},1,{"$nulls":9},1]
[205,"Набережные Челны","МБОУ \"Средняя общеобразовательная школа № 27\" г. Набережные Челны",{"$nulls":5},1,{"$nulls":18},1]
[206,"Набережные Челны","МБОУ \"Средняя общеобразовательная школа №45 с углубленным изучением отдельных предметов\" г.Набережные Челны",{"$nulls":13},2,{"$nulls":10},2]
[207,"Набережные Челны","МБОУ \"Средняя общеобразовательная школа № 58\" города Набережные Челны",{"$nulls":7},1,{"$nulls":16},1]
[208,"Набережные Челны","МБОУ «Средняя общеобразовательная школа № 20» города Набережные Челны",{"$nulls":9},1,{"$nulls":14},1]
[209,"Набережные Челны","МБОУ \"Средняя общеобразовательная школа №37 с углубленным изучением отдельных предметов\" г. Набережные Челны Республики Татарстан",{"$nulls":4},4,{"$nulls":19},4]
[210,"Нижнекамский ","МБОУ \"Гимназия № 25\" Нижнекамского муниципального района Республики Татарстан ",null,null,1,{"$nulls":6},1,{"$nulls":5},1,null,1,null,null,1,{"$nulls":3},5]
[211,"Нижнекамский ","МБОУ \"Лицей №35\" Нижнекамского муниципального района Республики Татарстан",null,2,3,null,null,1,null,null,1,1,null,null,1,null,null,1,1,{"$nulls":3},1,{"$nulls":3},12]
[212,"Нижнекамский ","МБОУ «Средняя общеобразовательная школа №33 с углубленным изучением английского языка» Нижнекамского муниципального района Республики Татарстан",{"$nulls":20},1,null,null,1,2]
[213,"Нижнекамский ","МБОУ \"Лицей № 14\" Нижнекамского муниципального района Республики Татарстан",{"$nulls":9},1,{"$nulls":10},1,{"$nulls":3},2]
[214,"Нижнекамский ","МБОУ \"Средняя общеобразовательная школа № 2\" Нижнекамского муниципального района Республики Татарстан",{"$nulls":21},1,null,null,1]
[215,"Нижнекамский ","МБОУ \"Средняя общеобразовательная школа №29\" Нижнекамского муниципального района Республики Татарстан",{"$nulls":20},1,{"$nulls":3},1]
[216,"Нижнекамский ","МБОУ \"Гимназия № 2\" имени Баки Урманче Нижнекамского муниципального района Республики Татарстан",1,{"$nulls":6},2,{"$nulls":3},3,null,1,null,1,{"$nulls":7},6,14]
[217,"Нижнекамский ","МБОУ \"Гимназия № 22\" Нижнекамского муниципального района Республики Татарстан",1,null,null,1,1,{"$nulls":7},1,1,null,1,3,{"$nulls":7},9]
[218,"Нижнекамский ","МБОУ «Лицей-интернат №24» Нижнекамского муниципального района Республики Татарстан",2,1,null,4,null,null,4,null,1,null,4,{"$nulls":13},16]
[220,"Нижнекамский ","МБОУ \"Средняя общеобразовательная школа №10 с углубленным изучением отдельных предметов\" Нижнекамского муниципального района Республики Татарстан",{"$nulls":15},1,{"$nulls":7},1,2]
[221,"Нижнекамский ","МБОУ \"Средняя общеобразовательная школа №3\" Нижнекамского муниципального района Республики Татарстан",{"$nulls":15},1,{"$nulls":8},1]
[222,"Нижнекамский ","ГБОУ \"Татарстанский кадетский корпус Приволжского федерального округа им.Героя Советского Союза Гани Сафиуллина\"",{"$nulls":11},1,{"$nulls":12},1]
[223,"Нижнекамский ","МБОУ \"Гимназия №32\" Нижнекамского муниципального района Республики Татарстан",null,null,1,{"$nulls":10},4,null,null,1,1,{"$nulls":5},3,10]
[224,"Нижнекамский ","МБОУ \"Средняя общеобразовательная школа №12 с углубленным изучением отдельных предметов\" Нижнекамского муниципального района Республики Татарстан",{"$nulls":16},1,{"$nulls":7},1]
[225,"Нижнекамский ","МБОУ \"Средняя общеобразовательная школа№ 27 с углубленным изучением отдельных предметов\" Нижнекамского муниципального района Республики Татарстан",{"$nulls":7},1,{"$nulls":5},2,1,{"$nulls":8},1,5]
[226,"Нижнекамский ","МБОУ «Средняя общеобразовательная школа №15 с углубленным изучением отдельных предметов» Нижнекамского муниципального района Республики Татарстан",null,2,{"$nulls":22},2]
[228,"Нижнекамский ","МБОУ \"Гимназия №1\" имени Мусы Джалиля Нижнекамского муниципального района Республики Татарстан",{"$nulls":13},2,{"$nulls":10},2]
[229,"Новошешминский","МБОУ \"Новошешминская средняя общеобразвоательная школа Новошешминского муниципального района Республики Татарстан\"",{"$nulls":11},1,{"$nulls":12},1]
[230,"Нурлатский","МБОУ \"Старо-Челнинская средняя общеобразовательная школа Нурлатского муниципального района Республики Татарстан\"",{"$nulls":9},1,null,1,1,{"$nulls":11},3]
[231,"Нурлатский","МБОУ \"Фомкинская средняя общеобразовательная школа\" Нурлатского муниципального района Республики Татарстан",{"$nulls":11},1,{"$nulls":12},1]
[232,"Нурлатский ","МБОУ «Ново-Иглайкинская средняя общеобразовательная школа Нурлатского муниципального района Республики Татарстан»",{"$nulls":11},1,{"$nulls":12},1]
[233,"Нурлатский ","МБОУ «Средняя общеобразовательная школа №8 г. Нурлат Республики Татарстан»",{"$nulls":11},1,{"$nulls":12},1]
[234,"Нурлатский ","МАОУ «Средняя общеобразовательная школа №2» г.Нурлат Республики Татарстан",{"$nulls":9},1,null,null,1,{"$nulls":10},1,3]
[235,"Пестречинский","МБОУ \"Пестречинская средняя общеобразовательная школа № 1 с углубленным изучением отдельных предметов\" Пестречинского муниципального района Республики Татарстан",{"$nulls":12},1,{"$nulls":8},1,null,null,2]
[236,"Пестречинский","МБОУ \"Старо-Шигалеевская средняя общеобразовательная школа\" Пестречинского муниципального района Республики Татарстан",{"$nulls":12},1,{"$nulls":9},1,null,2]
[237,"Пестречинский","МБОУ \"Шалинская  средняя общеобразовательная школа имени Сафина Ф.А\" Пестречинского муниципального района Республики Татарстан",{"$nulls":13},1,{"$nulls":10},1]
[238,"Рыбно-Слободский ","МБОУ \"Большеелгинская средняя общеобразовательная школа\" Рыбно-Слободского  муниципального района Республики Татарстан",{"$nulls":24},0]
[239,"Рыбно-Слободский ","МБОУ \"Биектауская средняя общеобразовательная школа\" Рыбно-Слободского муниципального района Республики Татарстан",{"$nulls":7},1,{"$nulls":16},1]
[240,"Сабинский ","МБОУ\n \"Кильдебякская средняя общеобразовательная школа Сабинского муниципального района Республики Татарстан\"",{"$nulls":11},1,{"$nulls":12},1]
[241,"Сабинский","МБОУ  \"Завод-Ныртинская средняя общеобразовательная школа имени И.С.Башкирова Сабинского муниципального района Республики Татарстан\"",{"$nulls":11},1,{"$nulls":12},1]
[242,"Сабинский ","МБОУ  «Средняя общеобразовательная школа-интернат с углубленным изучением отдельных предметов для одаренных детей»  Сабинского муниципального района Республики Татарстан",null,2,{"$nulls":3},1,null,2,null,2,null,3,null,2,{"$nulls":3},1,{"$nulls":4},4,5,22]
[243,"Сабинский ","МБОУ \"Гимназия п.г.т.Богатые Сабы  Сабинского муниципального района Республики Татарстан\"",{"$nulls":23},2,2]
[244,"Сабинский ","МБОУ \"Изминская  средняя общеобразовательная школа Сабинского муниципального района Республики Татарстан\"",{"$nulls":23},1,1]
[245,"Сабинский ","МБОУ \"Большекибячинская средняя общеобразовательная школа Сабинского муниципального района Республики Татарстан\"",{"$nulls":23},1,1]
[246,"Сабинский ","МБОУ \"Тимершикская средняя общеобразовательная школа Сабинского муниципального района Республики Татарстан\"",null,1,{"$nulls":14},1,1,{"$nulls":6},3]
[247,"Сармановский ","МБОУ \"Джалильская средняя общеобразовательная школа №1 с углублённым изучением отдельных предметов\" Сармановского муниципального района Республики Татарстан",{"$nulls":12},1,{"$nulls":4},1,{"$nulls":4},1,null,3]
[248,"Сармановский ","МБОУ \"Сармановская средняя общеобразовательная школа\" Сармановского муниципального района Республики Татарстан",{"$nulls":22},1,1,2]
[249,"Советский","МБОУ \"Многопрофильная полилингвальная гимназия №180\" Советского района г. Казани",null,1,{"$nulls":5},1,{"$nulls":6},1,1,{"$nulls":4},1,{"$nulls":3},5]
[250,"Советский","МБОУ \"Многопрофильная школа №181\" Советского района г. Казани\"",{"$nulls":12},1,{"$nulls":11},1]
[251,"Советский","МБОУ \"Средняя общеобразовательная школа № 84 с углубленным изучением иностранных языков\" Советского района г. Казани",null,null,1,{"$nulls":16},1,{"$nulls":4},2]
[252,"Советский","МБОУ \"Средняя общеобразовательная школа № 72 с углубленным изучением немецкого языка\" Советского района г.Казани",{"$nulls":14},1,{"$nulls":6},7,null,null,8]
[253,"Советский","МАОУ \"Лицей-инженерный центр\" Советского района г. Казани",1,{"$nulls":13},4,3,{"$nulls":8},8]
[254,null,"МБОУ \"Многопрофильный лицей №185\" Советского района г.Казани",{"$nulls":14},1,{"$nulls":9},1]
[255,"Советский","МБОУ \"Средняя общеобразовательная школа с углубленным изучением отдельных предметов №184 им.М.И.Махмутова\" Советского района г.Казани",{"$nulls":15},1,{"$nulls":8},1]
[256,"Советский","МБОУ «Гимназия № 183» Советского района г.Казани",{"$nulls":15},1,{"$nulls":8},1]
[257,"Советский","МАОУ \"Лицей №121 имени Героя Советского Союза С.А.Ахтямова\" Советского района г.Казани",{"$nulls":14},2,{"$nulls":9},2]
[258,"Советский","МБОУ \"Средняя общеобразовательная школа №86 с углубленным изучением отдельных предметов\" Советского района г.Казани",{"$nulls":14},2,{"$nulls":8},1,3]
[259,"Советский","МБОУ \"Гимназия №93\" Советского района г. Казани",{"$nulls":7},1,{"$nulls":6},2,null,1,{"$nulls":7},4]
[260,"Советский","МБОУ \"Лицей № 159\" Советского района г.Казани\"",{"$nulls":7},1,{"$nulls":6},4,null,1,{"$nulls":7},6]
[261,"Советский","МБОУ \"Средняя общеобразовательная школа № 156\" Советского района г. Казани",null,1,{"$nulls":14},1,{"$nulls":7},2]
[262,"Советский","МБОУ \"Гимназия № 126\" Советского района г.Казани",{"$nulls":7},1,{"$nulls":6},2,{"$nulls":9},3]
[264,"Советский","МБОУ \"Татарская гимназия № 11\" Советского района г. Казани",{"$nulls":7},1,{"$nulls":6},3,{"$nulls":9},{"$f":"SUM(D259:AA259)","v":4}]
[265,"Советский","МБОУ \"Средняя общеобразовательная школа № 169\" Советского района г.Казани",{"$nulls":14},1,{"$nulls":7},1,null,2]
[266,"Советский","МБОУ \"Гимназия № 8 -Центр образования\" Советского района г. Казани",{"$nulls":14},1,{"$nulls":9},1]
[267,"Советский","МБОУ \"Гимназия №175\" Советского района г.Казани",{"$nulls":9},1,{"$nulls":3},1,1,null,null,1,{"$nulls":6},4]
[268,"Советский","МБОУ «Средняя общеобразовательная школа №167 с углубленным изучением отдельных предметов» Советского района г.Казани ",{"$nulls":9},1,{"$nulls":14},1]
[270,"Советский","МАОУ «Гимназия №141» Советского района г.Казани",null,null,1,{"$nulls":21},1]
[271,"Советский","МБОУ «Лицей № 110» Советского района г.Казани\"",{"$nulls":9},1,{"$nulls":14},1]
[272,"Спасский ","МБОУ \"Болгарская средняя общеобразовательная школа №1 с углубленным изучением отдельных предметов\" Спасского муниципального района Республики Татарстан",{"$nulls":15},1,{"$nulls":8},1]
[273,"Спасский ","МБОУ \"Болгарская средняя общеобразовательная школа №2\" Спасского муниципального района Республики Татарстан",{"$nulls":9},1,null,null,1,2,{"$nulls":9},1,5]
[274,"Спасский ","ГБОУ \"Болгарская кадетская школа-интернат имени Карпова Павла Алексеевича\" Спасского района Республики Татарстан",{"$nulls":11},1,{"$nulls":12},1]
[275,"Тетюшский ","МБОУ\n  «Тетюшская средняя общеобразовательная школа №1 имени Героя Советского Союза Ханжина Павла Семеновича» Тетюшского муниципального района Республики Татарстан",{"$nulls":7},1,{"$nulls":3},1,1,{"$nulls":11},3]
[276,"Тетюшский ","МБОУ «Тетюшская татарская средняя общеобразовательная школа» Тетюшского муниципального района Республики Татарстан",{"$nulls":7},1,{"$nulls":16},1]
[277,"Тетюшский ","МБОУ «Алабердинская средняя общеобразовательная школа» Тетюшского муниципального района Республики Татарстан",{"$nulls":12},1,{"$nulls":11},1]
[278,"Тетюшский","МБОУ \"Тетюшская средняя общеобразовательная школа №2\" Тетюшского муниципального района Республики Татарстан",{"$nulls":24},0]
[279,"Тукаевский","МБОУ \"Малошильнинская СОШ\" Тукаевского муниципального района Республики Татарстан",{"$nulls":12},1,{"$nulls":11},1]
[280,"Тюлячинский ","МБОУ - Тюлячинская средняя общеобразовательная школа Тюлячинского муниципального района Республики Татарстан",{"$nulls":9},2,{"$nulls":14},2]
[281,"Тюлячинский ","МБОУ - Старозюринская средняя общеобразовательная школа Тюлячинского муниципального района Республики Татарстан",{"$nulls":9},1,{"$nulls":14},1]
[282,"Тюлячинский ","МБОУ-Большенырсинская средняя общеобразовательная школа Тюлячинского муниципального района Республики Татарстан",{"$nulls":22},2,1,3]
[283,"Черемшанский","ГБОУ \"Черемшанская кадетская школа-интернат имени Героя Советского Союза И.Н.Конева\"",{"$nulls":11},3,{"$nulls":12},3]
[284,"Чистопольский","МБОУ\n \"Лучовская средняя общеобразовательная школа\" Чистопольского муниципального района Республики Татарстан",{"$nulls":11},1,{"$nulls":11},1,2]
[285,"Чистопольский","МБОУ \"Лицей №1\" Чистопольского муниципального района Республики Татарстан",{"$nulls":5},1,{"$nulls":3},1,{"$nulls":3},1,null,1,{"$nulls":6},1,null,5]
[286,"Чистопольский","МБОУ \"Средняя общеобразовательная школа №1\" Чистопольского муниципального района Республики Татарстан",{"$nulls":23},2,2]
[287,"Чистопольский","МБОУ «Гимназия №1» Чистопольского муниципального района Республики Татарстан",null,null,1,{"$nulls":9},4,{"$nulls":11},5]
[288,"Чистопольский","МБОУ \"Гимназия №2\" Чистопольского муниципального района Республики Татарстан",{"$nulls":12},1,{"$nulls":11},1]
[289,"Чистопольский","МБОУ «Гимназия №3» Чистопольского муниципального района Республики Татарстан",null,1,{"$nulls":11},1,{"$nulls":10},2]
[290,"Ютазинский ","МБОУ \"Уруссинская средняя общеобразовательная школа № 3\" Ютазинского муниципального района Республики Татарстан",{"$nulls":11},1,{"$nulls":12},1]
[291,"Ютазинский ","МБОУ \"Уруссинская гимназия\" Ютазинского муниципального района Республики Татарстан",{"$nulls":16},1,{"$nulls":7},1]
[292,"Верхнеуслонский ","ГАОУ \"Школа Иннополис\"",{"$nulls":15},1,{"$nulls":8},1]

{"sheet":"Проверки","index":2,"n_rows":85,"n_cols":6,"rows_kept":85,"hidden":true}
["Английский язык","Женский","Имеются","Алтайский край","9 класс","Победитель"]
["Астрономия","Мужской","Не имеются","Амурская область","10 класс","Призер"]
["Биология",null,null,"Архангельская область","11 класс","Участник"]
["География",null,null,"Астраханская область","9-11 класс"]
["Информатика",null,null,"Белгородская область","10-11 класс"]
["Искусство (мировая художественная культура)",null,null,"Брянская область","Девушки 9 класс"]
["Испанский язык",null,null,"Владимирская область","Девушки 9-11 класс"]
["История",null,null,"Волгоградская область","Девушки 10-11 класс"]
["Итальянский язык",null,null,"Вологодская область","Юноши 9 класс"]
["Китайский язык",null,null,"Воронежская область","Юноши 9-11 класс"]
["Литература",null,null,"г. Москва","Юноши 10-11 класс"]
["Математика",null,null,"г. Санкт-Петербург"]
["Немецкий язык",null,null,"г. Севастополь"]
["Обществознание",null,null,"Еврейская автономная область"]
["Основы безопасности жизнедеятельности",null,null,"Забайкальский край"]
["Право",null,null,"Ивановская область"]
["Русский язык",null,null,"Иркутская область"]
["Технология",null,null,"Кабардино-Балкарская Республика"]
["Физика",null,null,"Калининградская область"]
["Физическая культура",null,null,"Калужская область"]
["Французский язык",null,null,"Камчатский край"]
["Химия",null,null,"Карачаево-Черкесская Республика"]
["Экология",null,null,"Кемеровская область"]
["Экономика",null,null,"Кировская область"]
[{"$nulls":3},"Костромская область"]
[{"$nulls":3},"Краснодарский край"]
[{"$nulls":3},"Красноярский край"]
[{"$nulls":3},"Курганская область"]
[{"$nulls":3},"Курская область"]
[{"$nulls":3},"Ленинградская область"]
[{"$nulls":3},"Липецкая область"]
[{"$nulls":3},"Магаданская область"]
[{"$nulls":3},"Московская область"]
[{"$nulls":3},"Мурманская область"]
[{"$nulls":3},"Ненецкий автономный округ"]
[{"$nulls":3},"Нижегородская область"]
[{"$nulls":3},"Новгородская область"]
[{"$nulls":3},"Новосибирская область"]
[{"$nulls":3},"Омская область"]
[{"$nulls":3},"Оренбургская область"]
[{"$nulls":3},"Орловская область"]
[{"$nulls":3},"Пензенская область"]
[{"$nulls":3},"Пермский край"]
[{"$nulls":3},"Приморский край"]
[{"$nulls":3},"Псковская область"]
[{"$nulls":3},"Республика Адыгея (Адыгея)"]
[{"$nulls":3},"Республика Алтай"]
[{"$nulls":3},"Республика Башкортостан"]
[{"$nulls":3},"Республика Бурятия"]
[{"$nulls":3},"Республика Дагестан"]
[{"$nulls":3},"Республика Ингушетия"]
[{"$nulls":3},"Республика Калмыкия"]
[{"$nulls":3},"Республика Карелия"]
[{"$nulls":3},"Республика Коми"]
[{"$nulls":3},"Республика Крым"]
[{"$nulls":3},"Республика Марий Эл"]
[{"$nulls":3},"Республика Мордовия"]
[{"$nulls":3},"Республика Саха (Якутия)"]
[{"$nulls":3},"Республика Северная Осетия - Алания"]
[{"$nulls":3},"Республика Татарстан (Татарстан)"]
[{"$nulls":3},"Республика Тыва"]
[{"$nulls":3},"Республика Хакасия"]
[{"$nulls":3},"Ростовская область"]
[{"$nulls":3},"Рязанская область"]
[{"$nulls":3},"Самарская область"]
[{"$nulls":3},"Саратовская область"]
[{"$nulls":3},"Сахалинская область"]
[{"$nulls":3},"Свердловская область"]
[{"$nulls":3},"Смоленская область"]
[{"$nulls":3},"Ставропольский край"]
[{"$nulls":3},"Тамбовская область"]
[{"$nulls":3},"Тверская область"]
[{"$nulls":3},"Томская область"]
[{"$nulls":3},"Тульская область"]
[{"$nulls":3},"Тюменская область"]
[{"$nulls":3},"Удмуртская Республика"]
[{"$nulls":3},"Ульяновская область"]
[{"$nulls":3},"Хабаровский край"]
[{"$nulls":3},"Ханты-Мансийский автономный округ - Югра"]
[{"$nulls":3},"Челябинская область"]
[{"$nulls":3},"Чеченская Республика"]
[{"$nulls":3},"Чувашская Республика - Чувашия"]
[{"$nulls":3},"Чукотский автономный округ"]
[{"$nulls":3},"Ямало-Ненецкий автономный округ"]
[{"$nulls":3},"Ярославская область"]